fUSD/lending_fUSD_20260503
["ID","MTS","AMOUNT","RATE_DAILY","PERIOD"]
[421507132,1777781442000,-302.642992,0.00027397,2]
[421507130,1777781442000,-302.643001,0.00027397,2]
[421507133,1777781442000,-151.0,0.00027397,2]
[421507134,1777781442000,-151.0,0.00027397,2]
[421507136,1777781442000,-1680.9,0.00027397,10]
[421507141,1777781442000,-741.61,0.000274,7]
[421507140,1777781442000,-162.45035992,0.000274,7]
[421507164,1777781442000,-163.22,0.00029232,2]
[421507138,1777781442000,-1167.29,0.00027397,10]
[421507135,1777781442000,-195.274821,0.00027397,2]
[421507139,1777781442000,-165.61,0.000274,7]
[421507145,1777781442000,-1282.24,0.000274,14]
[421507143,1777781442000,-61137.11,0.000274,7]
[421507151,1777781442000,-528.54228444,0.00028035,2]
[421507137,1777781442000,-1400.75,0.00027397,10]
[421507149,1777781442000,-9788.24601005,0.00027406,2]
[421507147,1777781442000,-13788.5132277,0.00027406,2]
[421507167,1777781442000,-1500.0,0.00029534,15]
[421507162,1777781442000,-163.19,0.00029031,30]
[421507163,1777781442000,-163.21,0.00029031,30]
[421507159,1777781442000,-163.21,0.0002883,7]
[421507155,1777781442000,-163.21,0.0002863,2]
[421507152,1777781442000,-162.45035992,0.000282,7]
[421507156,1777781442000,-246.38835624,0.00028684,2]
[421507161,1777781442000,-278.43,0.00029,2]
[421507160,1777781442000,-1221.0,0.00028889,2]
[421507153,1777781442000,-163.19,0.0002863,2]
[421507150,1777781442000,-10096.10504913,0.00028,2]
[421507158,1777781442000,-163.19,0.0002883,7]
[421507236,1777781443000,-152.0,0.00033428,3]
[421507242,1777781443000,-168.29302351,0.00033709,6]
[421507238,1777781443000,-10000.0,0.00033657,2]
[421507233,1777781443000,-560.0256091,0.00033107,2]
[421507235,1777781443000,-221.32,0.000332,60]
[421507227,1777781443000,-37865.47790101,0.00033,3]
[421507231,1777781443000,-5496.56563388,0.00033067,30]
[421507232,1777781443000,-8813.5306165,0.00033107,2]
[421507230,1777781443000,-162.45035992,0.00033,3]
[421507225,1777781443000,-681.26,0.00033,2]
[421507228,1777781443000,-1936.58747997,0.00033,120]
[421507234,1777781443000,-471.55,0.00033131,2]
[421507239,1777781443000,-417041.55315487,0.000337,2]
[421507253,1777781443000,-741.61,0.000352,30]
[421507241,1777781443000,-1853.21476743,0.00033709,2]
[421507237,1777781443000,-471.55,0.00033535,2]
[421507243,1777781443000,-1936.58747997,0.000339,120]
[421507245,1777781443000,-1573.48801582,0.00034,120]
[421507244,1777781443000,-471.55991163,0.00033939,2]
[421507246,1777781443000,-61137.11,0.00034,7]
[421507248,1777781443000,-256.8,0.0003428,2]
[421507247,1777781443000,-1282.24,0.000342,14]
[421507251,1777781443000,-339.08,0.00034613,2]
[421507252,1777781443000,-1936.58747997,0.00035,120]
[421507250,1777781443000,-3901.68,0.00034326,30]
[421507249,1777781443000,-3373.61308164,0.00034315,2]
[421507229,1777781443000,-741.61,0.00033,30]
[421507240,1777781443000,-3650.31103264,0.00033709,2]
[421507226,1777781443000,-681.26,0.00033,2]
[421507210,1777781443000,-157.70605661,0.00032442,7]
[421507224,1777781443000,-249.49,0.000329,2]
[421507254,1777781443000,-1642.01,0.000352,7]
[421507196,1777781443000,-152.48212507,0.00031,2]
[421507198,1777781443000,-168.04370346,0.00031166,30]
[421507201,1777781443000,-1521.42417455,0.000316,2]
[421507203,1777781443000,-1521.42417453,0.000316,2]
[421507200,1777781443000,-1015.13,0.00031285,7]
[421507197,1777781443000,-153.0,0.00031164,30]
[421507202,1777781443000,-1521.42417453,0.000316,2]
[421507199,1777781443000,-164.0,0.00031166,30]
[421507204,1777781443000,-1936.58747997,0.00032,120]
[421507205,1777781443000,-153.14947403,0.00032164,30]
[421507207,1777781443000,-61137.11,0.000322,7]
[421507206,1777781443000,-170.51286766,0.00032166,30]
[421507208,1777781443000,-471.55,0.00032322,2]
[421507213,1777781443000,-94593.86423345,0.000328,7]
[421507211,1777781443000,-681.26,0.000327,2]
[421507209,1777781443000,-1282.24,0.000324,14]
[421507215,1777781443000,-9788.24601005,0.00032831,2]
[421507216,1777781443000,-645.88,0.00032876,2]
[421507214,1777781443000,-13788.5132277,0.00032831,2]
[421507212,1777781443000,-471.55,0.00032726,2]
[421507220,1777781443000,-151.32979675,0.00032877,2]
[421507222,1777781443000,-337.52,0.000329,2]
[421507219,1777781443000,-157.70605661,0.00032877,120]
[421507218,1777781443000,-188.10592,0.00032877,7]
[421507217,1777781443000,-151.0,0.00032877,7]
[421507221,1777781443000,-681.26,0.000329,2]
[421507223,1777781443000,-348.77,0.000329,2]
[421507257,1777781443000,-9788.24601005,0.00035543,2]
[421507255,1777781443000,-200.0,0.0003546,2]
[421507256,1777781443000,-13788.5132277,0.00035543,2]
[421507326,1777781443000,-4828.61825716,0.00038,10]
[421507329,1777781443000,-4999.99999901,0.00038,120]
[421507327,1777781443000,-307.33191612,0.00038,30]
[421507332,1777781443000,-1642.01,0.00038,7]
[421507333,1777781443000,-1767.43,0.00038034,30]
[421507323,1777781443000,-681.26,0.00038,2]
[421507334,1777781443000,-245.44,0.00038034,30]
[421507336,1777781443000,-214.07,0.00038034,30]
[421507337,1777781443000,-581.0,0.00038087,2]
[421507338,1777781443000,-286.9995048,0.000381,33]
[421507339,1777781443000,-271.71619356,0.000381,33]
[421507335,1777781443000,-711.23,0.00038034,30]
[421507345,1777781443000,-9788.24601005,0.00038256,2]
[421507314,1777781443000,-221.32,0.000377,20]
[421507344,1777781443000,-13788.5132277,0.00038256,2]
[421507341,1777781443000,-581.0,0.00038134,2]
[421507342,1777781443000,-1936.58747997,0.000382,120]
[421507348,1777781443000,-581.0,0.00038325,2]
[421507346,1777781443000,-3373.61308164,0.00038274,2]
[421507347,1777781443000,-194.27674835,0.00038312,2]
[421507349,1777781443000,-597.96728891,0.00038355,8]
[421507350,1777781443000,-597.96728891,0.00038355,8]
[421507351,1777781443000,-597.96728891,0.00038355,8]
[421507352,1777781443000,-597.9672889,0.00038355,8]
[421507353,1777781443000,-597.9672889,0.00038355,8]
[421507355,1777781443000,-502.10953671,0.00038356,8]
[421507354,1777781443000,-293.63446599,0.00038355,8]
[421507259,1777781443000,-198.05993454,0.00035982,3]
[421507343,1777781443000,-488.30499488,0.00038207,10]
[421507316,1777781443000,-2214.827,0.00037729,49]
[421507340,1777781443000,-233.706789,0.000381,120]
[421507318,1777781443000,-3650.31103262,0.00037971,2]
[421507321,1777781443000,-1853.21476741,0.00037971,2]
[421507258,1777781443000,-500.0,0.00035616,5]
[421507260,1777781443000,-292.23973816,0.00035982,3]
[421507262,1777781443000,-1936.58747997,0.00036,120]
[421507264,1777781443000,-1000.0,0.00036438,5]
[421507273,1777781443000,-150.0,0.00036922,2]
[421507265,1777781443000,-1576.75079,0.00036765,2]
[421507263,1777781443000,-165.19,0.00036094,10]
[421507269,1777781443000,-189.7,0.00036888,10]
[421507267,1777781443000,-983.437615,0.00036765,2]
[421507271,1777781443000,-287.0,0.00036922,2]
[421507275,1777781443000,-250.0,0.00036922,2]
[421507281,1777781443000,-150.0,0.00037081,2]
[421507277,1777781443000,-171.18,0.00036986,30]
[421507261,1777781443000,-166.07,0.00036,120]
[421507283,1777781443000,-150.0,0.00037081,2]
[421507279,1777781443000,-180.0,0.00036986,30]
[421507310,1777781443000,-227.088484,0.00037634,120]
[421507304,1777781443000,-301.37978169,0.0003726,5]
[421507302,1777781443000,-274.0,0.000372,120]
[421507289,1777781443000,-150.0,0.00037081,2]
[421507287,1777781443000,-150.0,0.00037081,2]
[421507312,1777781443000,-1642.01,0.000377,7]
[421507291,1777781443000,-150.0,0.00037081,2]
[421507300,1777781443000,-152.0,0.00037146,4]
[421507285,1777781443000,-150.0,0.00037081,2]
[421507296,1777781443000,-171.0,0.0003709,30]
[421507298,1777781443000,-1936.58747997,0.000371,120]
[421507293,1777781443000,-197.0,0.00037081,2]
[421507399,1777781444000,-341.58551268,0.00038356,8]
[421507400,1777781444000,-605.22248564,0.00038356,8]
[421507394,1777781444000,-500.0,0.00038356,8]
[421507396,1777781444000,-500.0,0.00038356,8]
[421507389,1777781444000,-172.09908215,0.00038356,8]
[421507398,1777781444000,-500.0,0.00038356,8]
[421507390,1777781444000,-211.62723785,0.00038356,8]
[421507395,1777781444000,-187.41366347,0.00038356,8]
[421507392,1777781444000,-176.73706603,0.00038356,8]
[421507393,1777781444000,-183.27819177,0.00038356,8]
[421507391,1777781444000,-155.53469083,0.00038356,8]
[421507401,1777781444000,-213.56229962,0.00038356,8]
[421507397,1777781444000,-500.0,0.00038356,8]
[421507402,1777781444000,-611.37429197,0.00038356,8]
[421507411,1777781444000,-500.0,0.00038356,8]
[421507405,1777781444000,-500.0,0.00038356,8]
[421507403,1777781444000,-500.0,0.00038356,8]
[421507406,1777781444000,-500.0,0.00038356,8]
[421507407,1777781444000,-500.0,0.00038356,8]
[421507409,1777781444000,-500.0,0.00038356,8]
[421507408,1777781444000,-500.0,0.00038356,8]
[421507414,1777781444000,-500.0,0.00038356,8]
[421507412,1777781444000,-500.0,0.00038356,8]
[421507410,1777781444000,-500.0,0.00038356,8]
[421507415,1777781444000,-191.33510995,0.00038356,8]
[421507413,1777781444000,-500.0,0.00038356,8]
[421507416,1777781444000,-500.0,0.00038356,8]
[421507388,1777781444000,-500.0,0.00038356,8]
[421507404,1777781444000,-628.47114469,0.00038356,8]
[421507382,1777781444000,-157.87331421,0.00038356,8]
[421507356,1777781444000,-500.0,0.00038356,8]
[421507385,1777781444000,-181.72260394,0.00038356,8]
[421507417,1777781444000,-500.0,0.00038356,8]
[421507357,1777781444000,-157.18472622,0.00038356,8]
[421507358,1777781444000,-163.1478896,0.00038356,8]
[421507359,1777781444000,-175.90122289,0.00038356,8]
[421507360,1777781444000,-500.0,0.00038356,8]
[421507362,1777781444000,-500.0,0.00038356,8]
[421507363,1777781444000,-180.99806633,0.00038356,8]
[421507361,1777781444000,-500.0,0.00038356,8]
[421507364,1777781444000,-500.0,0.00038356,8]
[421507366,1777781444000,-501.27244174,0.00038356,8]
[421507367,1777781444000,-153.32461593,0.00038356,8]
[421507365,1777781444000,-169.59202417,0.00038356,8]
[421507368,1777781444000,-500.0,0.00038356,8]
[421507369,1777781444000,-500.0,0.00038356,8]
[421507373,1777781444000,-152.79896296,0.00038356,2]
[421507371,1777781444000,-155.02153227,0.00038356,8]
[421507370,1777781444000,-162.01141168,0.00038356,8]
[421507374,1777781444000,-169.93700434,0.00038356,8]
[421507375,1777781444000,-161.67980043,0.00038356,8]
[421507372,1777781444000,-155.01822279,0.00038356,8]
[421507377,1777781444000,-171.96009493,0.00038356,8]
[421507378,1777781444000,-204.21552043,0.00038356,8]
[421507379,1777781444000,-500.0,0.00038356,8]
[421507376,1777781444000,-165.32889402,0.00038356,8]
[421507380,1777781444000,-152.68996569,0.00038356,8]
[421507383,1777781444000,-174.54337745,0.00038356,8]
[421507381,1777781444000,-164.38387133,0.00038356,8]
[421507387,1777781444000,-3784.758963,0.00038356,8]
[421507384,1777781444000,-183.21701165,0.00038356,8]
[421507386,1777781444000,-184.54812953,0.00038356,8]
[421507420,1777781444000,-500.0,0.00038356,8]
[421507480,1777781444000,-500.0,0.00038356,8]
[421507418,1777781444000,-500.0,0.00038356,8]
[421507454,1777781444000,-500.0,0.00038356,8]
[421507456,1777781444000,-500.0,0.00038356,8]
[421507458,1777781444000,-207.16473129,0.00038356,8]
[421507457,1777781444000,-500.0,0.00038356,8]
[421507455,1777781444000,-500.0,0.00038356,8]
[421507459,1777781444000,-504.48656924,0.00038356,8]
[421507461,1777781444000,-153.34953808,0.00038356,8]
[421507462,1777781444000,-500.0,0.00038356,8]
[421507463,1777781444000,-500.0,0.00038356,8]
[421507460,1777781444000,-500.0,0.00038356,8]
[421507464,1777781444000,-500.0,0.00038356,8]
[421507465,1777781444000,-500.0,0.00038356,8]
[421507466,1777781444000,-500.0,0.00038356,8]
[421507451,1777781444000,-500.0,0.00038356,8]
[421507470,1777781444000,-500.0,0.00038356,8]
[421507471,1777781444000,-158.65185916,0.00038356,8]
[421507469,1777781444000,-500.0,0.00038356,8]
[421507468,1777781444000,-319.24616504,0.00038356,8]
[421507474,1777781444000,-500.0,0.00038356,8]
[421507479,1777781444000,-500.0,0.00038356,8]
[421507477,1777781444000,-500.0,0.00038356,8]
[421507473,1777781444000,-500.0,0.00038356,8]
[421507472,1777781444000,-500.0,0.00038356,8]
[421507475,1777781444000,-500.0,0.00038356,8]
[421507478,1777781444000,-500.0,0.00038356,8]
[421507476,1777781444000,-500.0,0.00038356,8]
[421507419,1777781444000,-500.0,0.00038356,8]
[421507482,1777781444000,-222.99633703,0.00038356,8]
[421507467,1777781444000,-153.98533217,0.00038356,8]
[421507453,1777781444000,-500.0,0.00038356,8]
[421507481,1777781444000,-176.64693596,0.00038356,8]
[421507448,1777781444000,-500.0,0.00038356,8]
[421507422,1777781444000,-500.0,0.00038356,8]
[421507452,1777781444000,-500.0,0.00038356,8]
[421507423,1777781444000,-167.12191192,0.00038356,8]
[421507424,1777781444000,-500.0,0.00038356,8]
[421507421,1777781444000,-500.0,0.00038356,8]
[421507427,1777781444000,-500.0,0.00038356,8]
[421507425,1777781444000,-500.0,0.00038356,8]
[421507426,1777781444000,-500.0,0.00038356,8]
[421507429,1777781444000,-226.23851297,0.00038356,8]
[421507433,1777781444000,-500.0,0.00038356,8]
[421507431,1777781444000,-500.0,0.00038356,8]
[421507432,1777781444000,-500.0,0.00038356,8]
[421507430,1777781444000,-548.13592269,0.00038356,8]
[421507434,1777781444000,-500.0,0.00038356,8]
[421507428,1777781444000,-500.0,0.00038356,8]
[421507436,1777781444000,-500.0,0.00038356,8]
[421507437,1777781444000,-184.93268089,0.00038356,8]
[421507450,1777781444000,-500.0,0.00038356,8]
[421507446,1777781444000,-500.0,0.00038356,8]
[421507449,1777781444000,-500.0,0.00038356,8]
[421507447,1777781444000,-500.0,0.00038356,8]
[421507445,1777781444000,-500.0,0.00038356,8]
[421507443,1777781444000,-500.0,0.00038356,8]
[421507442,1777781444000,-500.0,0.00038356,8]
[421507441,1777781444000,-500.0,0.00038356,8]
[421507435,1777781444000,-186.15080358,0.00038356,8]
[421507439,1777781444000,-500.0,0.00038356,8]
[421507440,1777781444000,-264.7119388,0.00038356,8]
[421507438,1777781444000,-500.0,0.00038356,8]
[421507444,1777781444000,-181.17742814,0.00038356,8]
[421507522,1777781445000,-500.0,0.00038356,8]
[421507523,1777781445000,-181.54768014,0.00038356,8]
[421507524,1777781445000,-500.0,0.00038356,8]
[421507514,1777781445000,-505.51791198,0.00038356,8]
[421507519,1777781445000,-501.11003829,0.00038356,8]
[421507517,1777781445000,-500.0,0.00038356,8]
[421507518,1777781445000,-502.92141436,0.00038356,8]
[421507520,1777781445000,-506.67766124,0.00038356,8]
[421507525,1777781445000,-609.38931706,0.00038356,8]
[421507516,1777781445000,-501.31058239,0.00038356,8]
[421507521,1777781445000,-500.861173,0.00038356,8]
[421507526,1777781445000,-500.91268996,0.00038356,8]
[421507533,1777781445000,-502.72052182,0.00038356,8]
[421507530,1777781445000,-501.92167427,0.00038356,8]
[421507528,1777781445000,-504.65947738,0.00038356,8]
[421507527,1777781445000,-151.33947664,0.00038356,8]
[421507531,1777781445000,-153.33378895,0.00038356,8]
[421507532,1777781445000,-503.48555982,0.00038356,8]
[421507534,1777781445000,-522.99805098,0.00038356,8]
[421507535,1777781445000,-500.0,0.00038356,8]
[421507536,1777781445000,-209.58400327,0.00038356,8]
[421507537,1777781445000,-177.96108068,0.00038356,8]
[421507538,1777781445000,-645.978554,0.00038356,8]
[421507539,1777781445000,-501.20027878,0.00038356,8]
[421507515,1777781445000,-500.0,0.00038356,8]
[421507540,1777781445000,-3213.9,0.00038356,8]
[421507529,1777781445000,-508.00709761,0.00038356,8]
[421507513,1777781445000,-503.45309827,0.00038356,8]
[421507495,1777781445000,-500.0,0.00038356,8]
[421507512,1777781445000,-531.10654635,0.00038356,8]
[421507542,1777781445000,-502.10543851,0.00038356,8]
[421507484,1777781445000,-500.0,0.00038356,8]
[421507483,1777781445000,-500.0,0.00038356,8]
[421507485,1777781445000,-150.95707932,0.00038356,8]
[421507486,1777781445000,-500.0,0.00038356,8]
[421507489,1777781445000,-489.28595727,0.00038356,8]
[421507488,1777781445000,-500.0,0.00038356,8]
[421507487,1777781445000,-500.0,0.00038356,8]
[421507491,1777781445000,-500.0,0.00038356,8]
[421507490,1777781445000,-500.0,0.00038356,8]
[421507492,1777781445000,-500.0,0.00038356,8]
[421507493,1777781445000,-500.0,0.00038356,8]
[421507494,1777781445000,-500.0,0.00038356,8]
[421507510,1777781445000,-502.84026121,0.00038356,8]
[421507497,1777781445000,-500.0,0.00038356,8]
[421507498,1777781445000,-503.30704885,0.00038356,8]
[421507504,1777781445000,-503.25280635,0.00038356,8]
[421507502,1777781445000,-179.4681364,0.00038356,8]
[421507507,1777781445000,-500.84379898,0.00038356,8]
[421507500,1777781445000,-500.0,0.00038356,8]
[421507503,1777781445000,-507.72460197,0.00038356,8]
[421507506,1777781445000,-508.89394211,0.00038356,8]
[421507499,1777781445000,-500.0,0.00038356,8]
[421507501,1777781445000,-180.72417444,0.00038356,8]
[421507505,1777781445000,-507.81582118,0.00038356,8]
[421507509,1777781445000,-500.0,0.00038356,8]
[421507508,1777781445000,-505.41337618,0.00038356,8]
[421507511,1777781445000,-506.64040987,0.00038356,8]
[421507496,1777781445000,-501.6354576,0.00038356,8]
[421507541,1777781445000,-502.43540156,0.00038356,8]
[421507561,1777781445000,-507.47116913,0.00038356,8]
[421507546,1777781445000,-500.0,0.00038356,8]
[421507581,1777781445000,-195.70451275,0.00038356,8]
[421507575,1777781445000,-500.0,0.00038356,3]
[421507577,1777781445000,-500.0,0.00038356,8]
[421507580,1777781445000,-502.68438908,0.00038356,8]
[421507578,1777781445000,-529.18511601,0.00038356,8]
[421507584,1777781445000,-501.2531187,0.00038356,8]
[421507582,1777781445000,-580.81414675,0.00038356,8]
[421507586,1777781445000,-303.4051758,0.00038356,8]
[421507583,1777781445000,-500.78436389,0.00038356,8]
[421507585,1777781445000,-203.37182261,0.00038356,8]
[421507587,1777781445000,-507.77806873,0.00038356,8]
[421507590,1777781445000,-500.0,0.00038356,8]
[421507588,1777781445000,-225.08955447,0.00038356,8]
[421507591,1777781445000,-548.65089733,0.00038356,8]
[421507593,1777781445000,-500.37176779,0.00038356,8]
[421507592,1777781445000,-635.62,0.00038356,8]
[421507594,1777781445000,-501.76105238,0.00038356,8]
[421507597,1777781445000,-499.92777144,0.00038356,8]
[421507598,1777781445000,-526.24267621,0.00038356,8]
[421507596,1777781445000,-500.0,0.00038356,8]
[421507602,1777781445000,-506.53873389,0.00038356,8]
[421507600,1777781445000,-177.16785174,0.00038356,8]
[421507599,1777781445000,-185.8717779,0.00038356,8]
[421507595,1777781445000,-496.89079756,0.00038356,8]
[421507601,1777781445000,-504.68760191,0.00038356,8]
[421507603,1777781445000,-500.0,0.00038356,8]
[421507545,1777781445000,-577.64312189,0.00038356,8]
[421507579,1777781445000,-500.0,0.00038356,8]
[421507576,1777781445000,-501.71510697,0.00038356,8]
[421507589,1777781445000,-500.3854463,0.00038356,8]
[421507574,1777781445000,-501.41403983,0.00038356,8]
[421507547,1777781445000,-501.1961591,0.00038356,8]
[421507572,1777781445000,-643.32,0.00038356,8]
[421507543,1777781445000,-214.06882713,0.00038356,8]
[421507544,1777781445000,-522.42985729,0.00038356,8]
[421507551,1777781445000,-172.74262379,0.00038356,8]
[421507548,1777781445000,-518.61466092,0.00038356,8]
[421507550,1777781445000,-501.18079421,0.00038356,8]
[421507549,1777781445000,-504.91283994,0.00038356,8]
[421507553,1777781445000,-503.31453297,0.00038356,8]
[421507556,1777781445000,-164.82839938,0.00038356,8]
[421507558,1777781445000,-503.32645553,0.00038356,8]
[421507557,1777781445000,-169.19614862,0.00038356,8]
[421507559,1777781445000,-500.0,0.00038356,8]
[421507552,1777781445000,-318.97975992,0.00038356,8]
[421507554,1777781445000,-500.0,0.00038356,8]
[421507567,1777781445000,-501.88444909,0.00038356,8]
[421507573,1777781445000,-500.0,0.00038356,8]
[421507555,1777781445000,-605.57458123,0.00038356,8]
[421507568,1777781445000,-274.39368105,0.00038356,8]
[421507570,1777781445000,-506.25465639,0.00038356,8]
[421507569,1777781445000,-371.9063169,0.00038356,8]
[421507564,1777781445000,-368.66540093,0.00038356,8]
[421507571,1777781445000,-503.4224494,0.00038356,8]
[421507565,1777781445000,-168.49001615,0.00038356,8]
[421507563,1777781445000,-500.0,0.00038356,8]
[421507560,1777781445000,-287.59234119,0.00038356,8]
[421507562,1777781445000,-500.0,0.00038356,8]
[421507566,1777781445000,-882.37,0.00038356,8]
[421507645,1777781446000,-500.0,0.00038356,8]
[421507648,1777781446000,-500.0,0.00038356,8]
[421507647,1777781446000,-500.43965856,0.00038356,8]
[421507646,1777781446000,-203.48234003,0.00038356,8]
[421507644,1777781446000,-514.9056869,0.00038356,8]
[421507639,1777781446000,-501.02966022,0.00038356,8]
[421507636,1777781446000,-504.32744986,0.00038356,8]
[421507641,1777781446000,-500.0,0.00038356,8]
[421507640,1777781446000,-587.51722371,0.00038356,8]
[421507642,1777781446000,-630.64715133,0.00038356,8]
[421507652,1777781446000,-500.0,0.00038356,8]
[421507643,1777781446000,-500.0,0.00038356,8]
[421507651,1777781446000,-217.27773736,0.00038356,8]
[421507665,1777781446000,-500.0,0.00038356,8]
[421507650,1777781446000,-210.93941299,0.00038356,8]
[421507653,1777781446000,-500.0,0.00038356,8]
[421507657,1777781446000,-502.18053839,0.00038356,8]
[421507649,1777781446000,-500.0,0.00038356,8]
[421507654,1777781446000,-199.23242598,0.00038356,8]
[421507655,1777781446000,-500.0,0.00038356,8]
[421507659,1777781446000,-184.11143281,0.00038356,8]
[421507658,1777781446000,-500.0,0.00038356,8]
[421507661,1777781446000,-500.0,0.00038356,8]
[421507660,1777781446000,-505.78829508,0.00038356,8]
[421507662,1777781446000,-211.73592567,0.00038356,8]
[421507669,1777781446000,-500.0,0.00038356,8]
[421507666,1777781446000,-515.99363096,0.00038356,8]
[421507638,1777781446000,-504.80868197,0.00038356,8]
[421507656,1777781446000,-256.94962177,0.00038356,8]
[421507635,1777781446000,-174.95285618,0.00038356,8]
[421507604,1777781446000,-207.29326377,0.00038356,8]
[421507632,1777781446000,-154.20598595,0.00038356,8]
[421507606,1777781446000,-567.69863194,0.00038356,8]
[421507605,1777781446000,-503.51791237,0.00038356,8]
[421507667,1777781446000,-301.55688044,0.00038356,8]
[421507607,1777781446000,-503.08358821,0.00038356,8]
[421507609,1777781446000,-418.59914749,0.00038356,8]
[421507610,1777781446000,-503.54001626,0.00038356,8]
[421507612,1777781446000,-528.11459973,0.00038356,8]
[421507611,1777781446000,-501.26498506,0.00038356,8]
[421507608,1777781446000,-616.49052112,0.00038356,8]
[421507616,1777781446000,-611.98163639,0.00038356,8]
[421507613,1777781446000,-500.23345093,0.00038356,8]
[421507614,1777781446000,-501.8148443,0.00038356,8]
[421507615,1777781446000,-502.90848948,0.00038356,8]
[421507619,1777781446000,-500.0,0.00038356,8]
[421507617,1777781446000,-300.75141538,0.00038356,8]
[421507620,1777781446000,-261.45901728,0.00038356,8]
[421507618,1777781446000,-500.0,0.00038356,8]
[421507621,1777781446000,-500.80937986,0.00038356,8]
[421507622,1777781446000,-170.80089963,0.00038356,8]
[421507627,1777781446000,-500.0,0.00038356,8]
[421507628,1777781446000,-500.80472614,0.00038356,8]
[421507630,1777781446000,-556.79903898,0.00038356,8]
[421507623,1777781446000,-153.54939146,0.00038356,8]
[421507624,1777781446000,-370.92237638,0.00038356,8]
[421507625,1777781446000,-500.0,0.00038356,8]
[421507626,1777781446000,-500.0,0.00038356,8]
[421507631,1777781446000,-636.17864677,0.00038356,8]
[421507634,1777781446000,-504.07473083,0.00038356,8]
[421507633,1777781446000,-500.0,0.00038356,8]
[421507637,1777781446000,-500.0,0.00038356,8]
[421507664,1777781446000,-507.80466913,0.00038356,8]
[421507629,1777781446000,-176.63693907,0.00038356,8]
[421507668,1777781446000,-264.88954883,0.00038356,8]
[421507724,1777781446000,-501.52238436,0.00038356,8]
[421507733,1777781446000,-500.0,0.00038356,8]
[421507737,1777781446000,-500.0,0.00038356,8]
[421507735,1777781446000,-500.0,0.00038356,8]
[421507731,1777781446000,-248.81056748,0.00038356,8]
[421507739,1777781446000,-501.2116384,0.00038356,8]
[421507741,1777781446000,-500.0,0.00038356,8]
[421507745,1777781446000,-637.34763047,0.00038356,8]
[421507743,1777781446000,-500.0,0.00038356,8]
[421507760,1777781446000,-158.65871558,0.00038356,8]
[421507749,1777781446000,-582.27608814,0.00038356,8]
[421507753,1777781446000,-265.27052452,0.00038356,8]
[421507762,1777781446000,-500.8230856,0.00038356,8]
[421507747,1777781446000,-500.0,0.00038356,8]
[421507757,1777781446000,-500.0,0.00038356,8]
[421507751,1777781446000,-500.95202529,0.00038356,8]
[421507755,1777781446000,-500.00662874,0.00038356,8]
[421507765,1777781446000,-500.0,0.00038356,8]
[421507763,1777781446000,-167.28972751,0.00038356,8]
[421507764,1777781446000,-500.0,0.00038356,8]
[421507766,1777781446000,-207.88053463,0.00038356,8]
[421507767,1777781446000,-169.16651989,0.00038356,8]
[421507768,1777781446000,-500.0,0.00038356,8]
[421507773,1777781446000,-500.69738233,0.00038356,8]
[421507772,1777781446000,-501.02741619,0.00038356,8]
[421507769,1777781446000,-470.8020763,0.00038356,8]
[421507774,1777781446000,-211.08537646,0.00038356,8]
[421507770,1777781446000,-500.40927207,0.00038356,8]
[421507663,1777781446000,-501.50363992,0.00038356,8]
[421507721,1777781446000,-501.14251821,0.00038356,8]
[421507729,1777781446000,-325.33932379,0.00038356,8]
[421507771,1777781446000,-164.57816674,0.00038356,8]
[421507723,1777781446000,-185.63388345,0.00038356,8]
[421507672,1777781446000,-500.0,0.00038356,8]
[421507727,1777781446000,-558.12917439,0.00038356,8]